bitfinex/quotes_BTCUSD_20240821
["timestamp","ask_amount","ask_price","bid_price","bid_amount"]
[1724225228108,1.314722,59726.0,59725.0,13.81854278]
[1724225228307,1.314722,59726.0,59725.0,15.31854278]
[1724225228708,1.28621829,59726.0,59725.0,15.65341078]
[1724225228955,1.28052829,59726.0,59725.0,15.65341078]
[1724225229157,1.24324829,59726.0,59725.0,15.66741078]
[1724225229486,0.30074829,59726.0,59725.0,17.30091078]
[1724225229694,0.15980767,59726.0,59725.0,16.47734943]
[1724225229844,0.15980767,59726.0,59725.0,16.49134943]
[1724225230052,0.08480767,59726.0,59725.0,16.47734943]
[1724225230249,0.03603902,59726.0,59725.0,16.47734943]
[1724225230657,0.03603902,59726.0,59725.0,17.19134468]
[1724225231242,0.03603902,59726.0,59725.0,17.17734468]
[1724225231697,0.03603902,59726.0,59725.0,17.19134468]
[1724225231903,0.03603902,59726.0,59725.0,17.17734468]
[1724225232356,0.000823,59738.0,59725.0,17.17734468]
[1724225232357,1.227877,59728.0,59727.0,0.004]
[1724225232589,0.03180454,59728.0,59727.0,9.34499307]
[1724225232786,1.7913,59729.0,59728.0,1.397327]
[1724225233004,1.77057071,59729.0,59728.0,8.95756721]
[1724225233212,1.77057071,59729.0,59728.0,9.30108708]
[1724225233408,1.77057071,59729.0,59728.0,10.35893808]
[1724225234446,1.77057071,59729.0,59728.0,9.81804707]
[1724225234778,1.77057071,59729.0,59728.0,9.96787988]
[1724225234983,1.77057071,59729.0,59728.0,10.41804707]
[1724225235182,1.77057071,59729.0,59728.0,10.56788167]
[1724225235450,1.77057071,59729.0,59728.0,9.88940538]
[1724225235727,1.77057071,59729.0,59728.0,9.87540538]
[1724225235940,1.77057071,59729.0,59728.0,9.86140538]
[1724225236234,1.77057071,59729.0,59728.0,10.22420538]
[1724225236469,1.77057071,59729.0,59728.0,10.21020538]
[1724225237086,1.77057071,59729.0,59728.0,9.52420538]
[1724225237710,1.77057071,59729.0,59728.0,12.37983363]
[1724225237914,1.77057071,59729.0,59728.0,12.40281544]
[1724225241773,1.77057071,59729.0,59728.0,12.40281519]
[1724225242334,1.77057071,59729.0,59728.0,12.40371939]
[1724225242764,1.77057071,59729.0,59728.0,12.92332682]
[1724225242980,1.77139271,59729.0,59728.0,13.14456851]
[1724225244511,1.77139271,59729.0,59728.0,12.92332682]
[1724225245569,1.77139271,59729.0,59728.0,12.82278299]
[1724225245781,1.77139271,59729.0,59728.0,13.14483898]
[1724225246493,1.77139271,59729.0,59728.0,12.20332766]
[1724225246846,1.77139271,59729.0,59728.0,9.01284841]
[1724225247870,1.77139271,59729.0,59728.0,9.87529941]
[1724225248098,1.77139271,59729.0,59728.0,9.29529941]
[1724225248512,1.77139271,59729.0,59728.0,9.33883942]
[1724225248731,1.77139271,59729.0,59728.0,9.17143942]
[1724225248950,0.82889271,59729.0,59728.0,9.95608299]
[1724225249152,0.82889271,59729.0,59728.0,9.52558299]
[1724225249367,0.82889271,59729.0,59728.0,9.55358299]
[1724225249574,0.58625778,59729.0,59728.0,9.92883044]
[1724225249788,0.58625778,59729.0,59728.0,9.91483044]
[1724225250011,0.58625778,59729.0,59728.0,9.91482524]
[1724225250222,0.58625778,59729.0,59728.0,9.92882524]
[1724225250427,0.58625778,59729.0,59728.0,9.91482524]
[1724225250661,0.58625778,59729.0,59728.0,9.88837779]
[1724225250866,0.58625778,59729.0,59728.0,9.87437779]
[1724225251494,1.845,59731.0,59730.0,1.20594]
[1724225251668,1.845,59731.0,59730.0,6.32304971]
[1724225251908,1.845,59731.0,59730.0,6.39523899]
[1724225252161,1.845,59731.0,59730.0,7.89523899]
[1724225252403,1.845,59731.0,59730.0,8.66970305]
[1724225253374,1.845,59731.0,59730.0,10.11975469]
[1724225253616,1.845,59731.0,59730.0,10.14775469]
[1724225254644,1.845,59731.0,59730.0,10.91079469]
[1724225256130,1.845822,59731.0,59730.0,10.91079469]
[1724225256338,1.845822,59731.0,59730.0,9.30133063]
[1724225257185,1.84562049,59731.0,59730.0,9.30133063]
[1724225258858,1.84562049,59731.0,59730.0,9.30136119]
[1724225261126,1.84562049,59731.0,59730.0,9.34582525]
[1724225261291,1.84562049,59731.0,59730.0,9.34582945]
[1724225261486,1.84562049,59731.0,59730.0,10.59543607]
[1724225261686,1.84562049,59731.0,59730.0,10.4948924]
[1724225261892,1.84562049,59731.0,59730.0,10.59543511]
[1724225263522,1.84562049,59731.0,59730.0,10.59541988]
[1724225264230,1.84562049,59731.0,59730.0,11.29541988]
[1724225265283,1.84562049,59731.0,59730.0,11.29541935]
[1724225265479,1.84562049,59731.0,59730.0,11.51702482]
[1724225266315,1.84562049,59731.0,59730.0,12.77302482]
[1724225267067,1.84562049,59731.0,59730.0,12.55141935]
[1724225268296,1.84562049,59731.0,59730.0,12.57760229]
[1724225268522,1.84562049,59731.0,59730.0,12.55141935]
[1724225268693,1.84562049,59731.0,59730.0,11.85141935]
[1724225269099,1.84562049,59731.0,59730.0,11.75087717]
[1724225269295,2.03472049,59731.0,59730.0,11.83313958]
[1724225269503,2.03472049,59731.0,59730.0,10.34851642]
[1724225269744,2.03472049,59731.0,59730.0,7.53048548]
[1724225269954,2.03472049,59731.0,59730.0,7.29667178]
[1724225270152,2.03472049,59731.0,59730.0,6.8922505]
[1724225270362,2.03472049,59731.0,59730.0,6.5051365]
[1724225270563,2.03472049,59731.0,59730.0,6.5071365]
[1724225270770,2.03472049,59731.0,59730.0,4.6692965]
[1724225270973,2.03472049,59731.0,59730.0,2.9122795]
[1724225271192,2.41692049,59731.0,59730.0,2.15257621]
[1724225271398,2.41692049,59731.0,59730.0,1.77120978]
[1724225271641,2.41692049,59731.0,59730.0,1.75720978]
[1724225271811,2.41692049,59731.0,59730.0,1.88268512]
[1724225272026,2.41692049,59731.0,59730.0,1.89668512]
[1724225272259,2.41692049,59731.0,59730.0,1.77120978]
[1724225272653,2.41692049,59731.0,59730.0,1.75720978]
[1724225272931,2.41692049,59731.0,59730.0,1.50878295]
[1724225273152,2.41692049,59731.0,59730.0,1.10178295]
[1724225273366,2.41692049,59731.0,59730.0,1.16301495]
[1724225273633,2.41692049,59731.0,59730.0,1.08573796]
[1724225273829,2.41692049,59731.0,59730.0,1.41867268]
[1724225274293,2.41692049,59731.0,59730.0,1.43267268]
[1724225274608,2.41692049,59731.0,59730.0,2.31731268]
[1724225274777,2.41692049,59731.0,59730.0,2.35431268]
[1724225274982,2.41692049,59731.0,59730.0,2.36831268]
[1724225275138,2.41692049,59731.0,59730.0,2.36931268]
[1724225275347,2.41692049,59731.0,59730.0,2.36831268]
[1724225275789,2.41692049,59731.0,59730.0,2.20089268]
[1724225276290,2.41692049,59731.0,59730.0,2.31319469]
[1724225276721,2.41692049,59731.0,59730.0,2.48061469]
[1724225276935,2.41692049,59731.0,59730.0,2.37130784]
[1724225277146,2.41692049,59731.0,59730.0,1.95480784]
[1724225277366,2.03472049,59731.0,59730.0,1.88993288]
[1724225277579,2.03472049,59731.0,59730.0,1.95480752]
[1724225277805,2.03472049,59731.0,59730.0,1.95180752]
[1724225278023,2.03472049,59731.0,59730.0,2.07709577]
[1724225278239,2.03472049,59731.0,59730.0,2.06309577]
[1724225278514,2.03472049,59731.0,59730.0,2.07709577]
[1724225278954,2.03472049,59731.0,59730.0,2.07909577]
[1724225279164,2.03472049,59731.0,59730.0,2.06309577]
[1724225279388,2.03472049,59731.0,59730.0,1.93871172]
[1724225279595,2.03472049,59731.0,59730.0,1.95271172]
[1724225280015,2.03472049,59731.0,59730.0,1.95471172]
[1724225280456,2.03472049,59731.0,59730.0,2.29055172]
[1724225280677,2.03472049,59731.0,59730.0,1.95571172]
[1724225280955,2.03472049,59731.0,59730.0,2.29055172]
[1724225281198,2.03472049,59731.0,59730.0,4.46194268]
[1724225281422,2.03472049,59731.0,59730.0,4.79978268]
[1724225281625,1.84562049,59731.0,59730.0,5.0486197]
[1724225282043,1.84562049,59731.0,59730.0,4.94981344]
[1724225282250,1.84562049,59731.0,59730.0,4.77826144]
[1724225282456,1.84562049,59731.0,59730.0,6.25026144]
[1724225282634,1.84562049,59731.0,59730.0,6.22573844]
[1724225282832,1.84562049,59731.0,59730.0,6.77338995]
[1724225283035,1.84562049,59731.0,59730.0,6.75938995]
[1724225283173,1.84562049,59731.0,59730.0,7.09422995]
[1724225283374,1.84562049,59731.0,59730.0,7.51212995]
[1724225284038,1.84562049,59731.0,59730.0,7.49812314]
[1724225284243,1.84562049,59731.0,59730.0,7.48412314]
[1724225284443,1.84562049,59731.0,59730.0,7.49812287]
[1724225285067,1.84562049,59731.0,59730.0,7.48412287]
[1724225285267,1.84562049,59731.0,59730.0,7.49812287]
[1724225285771,1.84562049,59731.0,59730.0,7.48412287]
[1724225286203,1.84562049,59731.0,59730.0,7.51212287]
[1724225286596,1.84562049,59731.0,59730.0,7.49812287]
[1724225287404,1.84562049,59731.0,59730.0,7.51212287]
[1724225289061,1.84562049,59731.0,59730.0,7.52382287]
[1724225289691,1.84562049,59731.0,59730.0,7.5237686]
[1724225292059,1.84562049,59731.0,59730.0,7.5237693]
[1724225292800,1.84562049,59731.0,59730.0,7.5908163]
[1724225295421,1.84562049,59731.0,59730.0,5.3490763]
[1724225295422,2.04122049,59731.0,59730.0,5.3490763]
[1724225295780,2.04122049,59731.0,59730.0,3.9012953]
[1724225295979,2.04122049,59731.0,59730.0,3.15735681]
[1724225296647,2.04122049,59731.0,59730.0,3.14635681]
[1724225297061,2.04122049,59731.0,59730.0,3.49519681]
[1724225297258,2.04122049,59731.0,59730.0,3.48119681]
[1724225297488,2.04122049,59731.0,59730.0,3.49219681]
[1724225297688,2.04122049,59731.0,59730.0,3.6425698]
[1724225297892,2.04122049,59731.0,59730.0,3.6285698]
[1724225298285,2.04122049,59731.0,59730.0,3.6425698]
[1724225298582,2.04122049,59731.0,59730.0,3.3077298]
[1724225298794,2.04122049,59731.0,59730.0,3.14565681]
[1724225298951,2.43972049,59731.0,59730.0,1.24097781]
[1724225299151,2.43972049,59731.0,59730.0,1.17729551]
[1724225299360,2.43972049,59731.0,59730.0,1.34471551]
[1724225299716,2.43972049,59731.0,59730.0,1.34472116]
[1724225300510,2.43972049,59731.0,59730.0,1.44472116]
[1724225301113,2.43972049,59731.0,59730.0,3.11240116]
[1724225301315,2.43972049,59731.0,59730.0,3.17809322]
[1724225301316,2.04122049,59731.0,59730.0,3.17809322]
[1724225303101,2.04122049,59731.0,59730.0,3.17509322]
[1724225303996,2.04122049,59731.0,59730.0,3.17609322]
[1724225305064,2.04122049,59731.0,59730.0,3.17809322]
[1724225306905,2.04122049,59731.0,59730.0,2.84025322]
[1724225307456,2.04122049,59731.0,59730.0,2.73968681]
[1724225307695,2.04122049,59731.0,59730.0,2.84024943]
[1724225307903,2.04122049,59731.0,59730.0,3.17508943]
[1724225309248,2.04122049,59731.0,59730.0,3.32545218]
[1724225310786,2.04122049,59731.0,59730.0,3.17508943]
[1724225313049,2.04122049,59731.0,59730.0,3.07927343]
[1724225313311,2.04122049,59731.0,59730.0,3.08027343]
[1724225313487,2.04122049,59731.0,59730.0,3.07927343]
[1724225313942,2.04122049,59731.0,59730.0,3.07933434]
[1724225314357,2.04122049,59731.0,59730.0,3.05058334]
[1724225315155,2.04122049,59731.0,59730.0,2.68879634]
[1724225315370,2.04122049,59731.0,59730.0,2.62510668]
[1724225316356,2.04122049,59731.0,59730.0,0.98948268]
[1724225316576,2.04122049,59731.0,59730.0,2.71162968]
[1724225317960,2.04122049,59731.0,59730.0,2.71262968]
[1724225318127,2.04122049,59731.0,59730.0,2.77631934]
[1724225318553,2.04122049,59731.0,59730.0,2.77531934]
[1724225318829,2.04122049,59731.0,59730.0,2.75351834]
[1724225319185,2.04122049,59731.0,59730.0,3.42373335]
[1724225320412,2.04122049,59731.0,59730.0,3.42473335]
[1724225320610,2.04122049,59731.0,59730.0,3.02130391]
[1724225320812,2.04122049,59731.0,59730.0,3.35614391]
[1724225321392,2.04122049,59731.0,59730.0,3.69098391]
[1724225321593,1.84562049,59731.0,59730.0,4.31450722]
[1724225321916,1.84562049,59731.0,59730.0,5.02333666]
[1724225322278,1.84562049,59731.0,59730.0,5.02533666]
[1724225322486,1.84562049,59731.0,59730.0,5.19973666]
[1724225322710,1.84562049,59731.0,59730.0,4.9521726]
[1724225323117,1.84562049,59731.0,59730.0,4.8654411]
[1724225323254,1.84562049,59731.0,59730.0,4.95199083]
[1724225323460,1.84562049,59731.0,59730.0,4.96599083]
[1724225323658,1.84562049,59731.0,59730.0,4.97769083]
[1724225324088,1.84562049,59731.0,59730.0,4.96369083]
[1724225324490,1.84562049,59731.0,59730.0,6.46369083]
[1724225324864,1.84562049,59731.0,59730.0,6.47769083]
[1724225327874,1.84562049,59731.0,59730.0,5.58688991]
[1724225328071,1.84562049,59731.0,59730.0,6.47769779]
[1724225330125,1.84562049,59731.0,59730.0,6.18699779]
[1724225330483,1.84562049,59731.0,59730.0,6.47769779]
[1724225331581,1.84562049,59731.0,59730.0,6.47769803]
[1724225332397,1.84562049,59731.0,59730.0,6.10651521]
[1724225332599,1.84562049,59731.0,59730.0,6.47767597]
[1724225333209,1.82213878,59731.0,59730.0,6.65997597]
[1724225334314,1.82213878,59731.0,59730.0,6.99481597]
[1724225334520,1.79700469,59731.0,59730.0,7.21697346]
[1724225334715,1.79700469,59731.0,59730.0,7.91697346]
[1724225335061,1.76074873,59731.0,59730.0,7.69481597]
[1724225335539,1.76074873,59731.0,59730.0,8.42481597]
[1724225335742,1.76074873,59731.0,59730.0,8.69140923]
[1724225336084,1.76074873,59731.0,59730.0,7.73927089]
[1724225336254,1.76074873,59731.0,59730.0,7.9613867]
[1724225336976,1.76074873,59731.0,59730.0,7.73927089]
[1724225337183,1.76074873,59731.0,59730.0,7.73921024]
[1724225337394,1.76074873,59731.0,59730.0,7.96130527]
[1724225339997,1.76074873,59731.0,59730.0,7.86076444]
[1724225340197,1.76074873,59731.0,59730.0,7.96130508]
[1724225340424,1.76074873,59731.0,59730.0,8.29880508]
[1724225340755,1.76054723,59731.0,59730.0,8.29880508]
[1724225340955,1.76054723,59731.0,59730.0,8.63330508]
[1724225341161,1.76054723,59731.0,59730.0,8.63328445]
[1724225342865,1.76054723,59731.0,59730.0,8.56960871]
[1724225343065,1.76054723,59731.0,59730.0,8.63328474]
[1724225343280,1.76054723,59731.0,59730.0,9.29274381]
[1724225343480,1.76054723,59731.0,59730.0,9.39328474]
[1724225344096,1.76054723,59731.0,59730.0,7.69293874]
[1724225344349,1.76054723,59731.0,59730.0,11.39946474]
[1724225344545,1.76054723,59731.0,59730.0,11.0029939]
[1724225345370,1.76054723,59731.0,59730.0,11.00299501]
[1724225345544,1.76054723,59731.0,59730.0,11.67309501]
[1724225346481,1.76054723,59731.0,59730.0,11.68479501]
[1724225346825,1.76054723,59731.0,59730.0,11.58425408]
[1724225347025,0.68093184,59731.0,59730.0,11.68479474]
[1724225347225,0.65579269,59731.0,59730.0,11.68479474]
[1724225348028,0.65579269,59731.0,59730.0,11.67309474]
[1724225348249,0.65079269,59731.0,59730.0,11.67309474]
[1724225348452,0.65079269,59731.0,59730.0,11.62863068]
[1724225348672,0.65079269,59731.0,59730.0,10.68633068]
[1724225349915,0.65079269,59731.0,59730.0,10.68630021]
[1724225350118,0.65079269,59731.0,59730.0,10.68629703]
[1724225350316,0.65079269,59731.0,59730.0,10.68629701]
[1724225350522,0.65079269,59731.0,59730.0,9.98629701]
[1724225350935,0.65079269,59731.0,59730.0,9.98629897]
[1724225352782,0.65079269,59731.0,59730.0,12.53542722]
[1724225353591,0.65079269,59731.0,59730.0,12.54712722]
[1724225354888,0.65079269,59731.0,59730.0,11.70089193]
[1724225355096,0.65079269,59731.0,59730.0,11.0823179]
[1724225355296,0.65079269,59731.0,59730.0,11.03118965]
[1724225355504,0.65079269,59731.0,59730.0,10.93065021]
[1724225355730,0.65079269,59731.0,59730.0,11.07163745]
[1724225356328,0.01639269,59731.0,59730.0,11.40647745]
[1724225356483,0.01639269,59731.0,59730.0,12.10647745]
[1724225357237,1.7661,59733.0,59732.0,1.891026]
[1724225357522,1.7661,59733.0,59732.0,13.49724888]
[1724225357834,1.7661,59733.0,59732.0,19.22336503]
[1724225359003,1.7661,59733.0,59732.0,19.23736503]
[1724225359206,1.7661,59733.0,59732.0,19.13682524]
[1724225359483,1.7661,59733.0,59732.0,19.23736318]
[1724225359821,1.7661,59733.0,59732.0,19.25136318]
[1724225360154,1.7661,59733.0,59732.0,20.94936318]
[1724225360787,1.7661,59733.0,59732.0,21.80049143]
[1724225362132,1.7640057,59733.0,59732.0,22.17978349]
[1724225363271,1.7640057,59733.0,59732.0,22.06197566]
[1724225363456,1.7640057,59733.0,59732.0,22.39839058]
[1724225363968,1.7640057,59733.0,59732.0,22.35392652]
[1724225364083,1.7640057,59733.0,59732.0,19.80479827]
[1724225364507,1.7640057,59733.0,59732.0,19.81879827]
[1724225364707,1.7640057,59733.0,59732.0,19.59691472]
[1724225365111,1.7640057,59733.0,59732.0,19.58291472]
[1724225365368,1.7640057,59733.0,59732.0,19.81879827]
[1724225365551,1.7640057,59733.0,59732.0,19.01879827]
[1724225365753,1.9586057,59733.0,59732.0,19.01879827]
[1724225366333,1.9586057,59733.0,59732.0,19.56531954]
[1724225366540,1.9586057,59733.0,59732.0,19.55131954]
[1724225366901,1.9586057,59733.0,59732.0,19.5653221]
[1724225367148,1.9586057,59733.0,59732.0,19.46478817]
[1724225367353,1.9586057,59733.0,59732.0,19.56532221]
[1724225367764,1.9586057,59733.0,59732.0,18.86532221]
[1724225368336,1.7640057,59733.0,59732.0,18.86532221]
[1724225369030,1.7640057,59733.0,59732.0,19.73532221]
[1724225369436,1.7640057,59733.0,59732.0,21.01482221]
[1724225369662,1.7640057,59733.0,59732.0,20.14482221]
[1724225369863,1.7640057,59733.0,59732.0,20.13082221]
[1724225370062,1.7640057,59733.0,59732.0,20.14482221]
[1724225370269,1.7640057,59733.0,59732.0,20.87482221]
[1724225370679,1.7640057,59733.0,59732.0,21.57482221]
[1724225371308,1.7640057,59733.0,59732.0,21.56082221]
[1724225371518,1.7640057,59733.0,59732.0,21.54682221]
[1724225371725,1.7640057,59733.0,59732.0,21.57482221]
[1724225372140,1.7640057,59733.0,59732.0,21.72987634]
[1724225372549,1.7640057,59733.0,59732.0,21.04387634]
[1724225373375,1.7640057,59733.0,59732.0,20.87482221]
[1724225373580,1.7640057,59733.0,59732.0,20.88652221]
[1724225374191,1.7640057,59733.0,59732.0,22.15615046]
[1724225375169,1.7640057,59733.0,59732.0,22.15705466]
[1724225375377,1.1296057,59733.0,59732.0,21.98519464]
[1724225375581,1.1296057,59733.0,59732.0,20.86047986]
[1724225375733,1.1296057,59733.0,59732.0,20.13606252]
[1724225376139,1.1558521,59733.0,59732.0,20.13606252]
[1724225376348,1.1558521,59733.0,59732.0,20.08188289]
[1724225376751,1.1558521,59733.0,59732.0,20.09588289]
[1724225378448,1.1296057,59733.0,59732.0,19.13231883]
[1724225379741,1.1296057,59733.0,59732.0,19.13231739]
[1724225380141,1.1296057,59733.0,59732.0,19.13231726]
[1724225381174,1.1296057,59733.0,59732.0,22.93040539]
[1724225381380,1.1296057,59733.0,59732.0,23.63895703]
[1724225381789,1.1296057,59733.0,59732.0,23.68342109]
[1724225382201,1.1296057,59733.0,59732.0,24.46342109]
[1724225382403,1.1296057,59733.0,59732.0,19.95678132]
[1724225383240,1.1296057,59733.0,59732.0,20.0234082]
[1724225383412,1.1296057,59733.0,59732.0,19.99712727]
[1724225383853,1.1296057,59733.0,59732.0,20.2297064]
[1724225384265,0.36513996,59733.0,59732.0,20.5528344]
[1724225384668,0.34231872,59733.0,59732.0,20.5528344]
[1724225384878,0.34231872,59733.0,59732.0,20.5645344]
[1724225385081,0.30883672,59733.0,59732.0,20.5365344]
[1724225385282,0.06390447,59733.0,59732.0,20.5365344]
[1724225385482,2.415,59735.0,59732.0,20.5365344]
[1724225385483,2.415,59735.0,59734.0,2.58031]
[1724225385802,2.247595,59735.0,59734.0,9.2602978]
[1724225385998,2.247595,59735.0,59734.0,10.00237963]
[1724225386547,2.214114,59735.0,59734.0,10.00237963]
[1724225386748,2.147152,59735.0,59734.0,10.00237963]
[1724225386974,1.446612,59735.0,59734.0,10.00237963]
[1724225387381,1.446612,59735.0,59734.0,10.02537963]
[1724225387536,1.413131,59735.0,59734.0,10.02537963]
[1724225387737,1.37965,59735.0,59734.0,10.03937963]
[1724225387992,1.312688,59735.0,59734.0,10.03923299]
[1724225388161,1.312688,59735.0,59734.0,11.53923299]
[1724225388369,1.28923541,59735.0,59734.0,11.53923299]
[1724225388580,1.25575441,59735.0,59734.0,11.55323299]
[1724225389153,1.23575441,59735.0,59734.0,11.53323299]
[1724225389359,1.23575441,59735.0,59734.0,10.79115116]
[1724225389602,1.23575441,59735.0,59734.0,10.80285116]
[1724225389809,1.10183041,59735.0,59734.0,15.29549093]
[1724225390236,1.10183041,59735.0,59734.0,15.30949093]
[1724225390653,1.09835649,59735.0,59734.0,15.30949093]
[1724225391015,0.92595149,59735.0,59734.0,13.90355051]
[1724225391220,0.92595149,59735.0,59734.0,11.54491074]
[1724225391435,1.63262849,59736.0,59735.0,2.42474206]
[1724225391646,1.63262849,59736.0,59735.0,8.79080932]
[1724225391647,1.42712592,59736.0,59735.0,8.79080932]
[1724225391859,1.42712592,59736.0,59735.0,8.72715523]
[1724225391860,1.36016392,59736.0,59735.0,8.72715523]
[1724225392061,1.36016392,59736.0,59735.0,10.32766006]
[1724225392289,1.36016392,59736.0,59735.0,10.33936006]
[1724225392502,0.14016392,59736.0,59735.0,9.5973444]
[1724225392708,0.14016392,59736.0,59735.0,8.70686657]
[1724225392709,0.07320192,59736.0,59735.0,8.70686657]
[1724225392909,0.00623992,59736.0,59735.0,9.61126886]
[1724225393110,1.3556,59737.0,59736.0,1.875433]
[1724225393218,1.3556,59737.0,59736.0,7.033236]
[1724225393678,1.3556,59737.0,59736.0,8.533236]
[1724225394971,1.3556,59737.0,59736.0,6.539493]
[1724225395172,1.3556,59737.0,59736.0,8.547236]
[1724225395374,1.3556,59737.0,59736.0,8.561236]
[1724225395953,1.3556,59737.0,59736.0,8.965736]
[1724225396323,1.3556,59737.0,59736.0,13.06787577]
[1724225396736,1.3556,59737.0,59736.0,13.05387577]
[1724225396939,1.3556,59737.0,59736.0,13.06787577]
[1724225397373,1.3556,59737.0,59736.0,10.17636534]
[1724225398232,1.3556,59737.0,59736.0,9.74791615]
[1724225398463,1.3556,59737.0,59736.0,8.47080131]
[1724225398915,1.3556,59737.0,59736.0,8.5838939]
[1724225399153,1.3556,59737.0,59736.0,8.5698939]
[1724225399407,1.3556,59737.0,59736.0,8.58389807]
[1724225399408,1.356422,59737.0,59736.0,8.58389807]
[1724225399888,1.356422,59737.0,59736.0,8.59289807]
[1724225400369,1.356422,59737.0,59736.0,8.61859807]
[1724225401080,1.356422,59737.0,59736.0,8.95349807]
[1724225401308,1.356422,59737.0,59736.0,8.98372771]
[1724225401309,1.16864358,59737.0,59736.0,8.98372771]
[1724225401509,0.53424358,59737.0,59736.0,9.01247516]
[1724225401714,0.40032358,59737.0,59736.0,9.01247516]
[1724225401921,0.36684358,59737.0,59736.0,9.34728116]
[1724225402135,0.36684358,59737.0,59736.0,9.34727061]
[1724225402367,0.36684358,59737.0,59736.0,9.33327061]
[1724225402592,0.36684358,59737.0,59736.0,9.7682706]
[1724225403007,0.33336358,59737.0,59736.0,9.72782315]
[1724225403211,0.19944358,59737.0,59736.0,10.44178428]
[1724225403408,0.19944358,59737.0,59736.0,10.12097828]
[1724225403611,0.19944358,59737.0,59736.0,10.13497828]
[1724225404031,0.19944358,59737.0,59736.0,10.14897828]
[1724225404651,0.19944358,59737.0,59736.0,9.36255309]
[1724225404865,0.19944358,59737.0,59736.0,8.94155309]
[1724225405503,0.19944358,59737.0,59736.0,8.94155706]
[1724225407102,0.19944358,59737.0,59736.0,8.95325706]
[1724225409460,0.19944358,59737.0,59736.0,8.94155706]
[1724225409877,0.19944358,59737.0,59736.0,8.95325706]
[1724225410087,0.19944358,59737.0,59736.0,9.37425706]
[1724225410307,0.19944358,59737.0,59736.0,9.37428202]
[1724225410751,0.19944358,59737.0,59736.0,8.81187602]
[1724225410956,0.19944358,59737.0,59736.0,6.37096073]
[1724225411201,0.19944358,59737.0,59736.0,8.36470373]
[1724225411676,0.19944358,59737.0,59736.0,8.35070373]
[1724225411881,0.19944358,59737.0,59736.0,8.34888101]
[1724225412087,0.19944358,59737.0,59736.0,8.48588101]
[1724225412325,0.19944358,59737.0,59736.0,7.79988101]
[1724225412548,0.19944358,59737.0,59736.0,7.78678521]
[1724225413035,0.19944358,59737.0,59736.0,8.57330912]
[1724225413286,0.19944358,59737.0,59736.0,8.61424459]
[1724225413516,0.19944358,59737.0,59736.0,8.61654459]
[1724225413767,0.19944358,59737.0,59736.0,9.55085215]
[1724225414019,0.19944358,59737.0,59736.0,10.60207321]
[1724225414263,0.19944358,59737.0,59736.0,10.602072]
[1724225414521,0.19944358,59737.0,59736.0,10.616072]
[1724225414761,0.19944358,59737.0,59736.0,10.56113653]
[1724225415005,0.19944358,59737.0,59736.0,10.54713653]
[1724225415249,0.19944358,59737.0,59736.0,10.56113653]
[1724225415498,0.19944358,59737.0,59736.0,10.54713653]
[1724225415737,0.19944358,59737.0,59736.0,10.57513653]
[1724225416240,0.19944358,59737.0,59736.0,10.99613653]
[1724225416484,0.19944358,59737.0,59736.0,10.98213653]
[1724225416724,0.19944358,59737.0,59736.0,10.99613653]
[1724225417837,0.19944358,59737.0,59736.0,11.03707156]
[1724225418041,0.19944358,59737.0,59736.0,10.98213609]
[1724225418218,0.19944358,59737.0,59736.0,11.02307156]
[1724225418351,0.19944358,59737.0,59736.0,10.98213609]
[1724225418565,0.19944358,59737.0,59736.0,10.94382139]
[1724225418756,0.19944358,59737.0,59736.0,10.98475686]
[1724225418964,0.18373058,59737.0,59736.0,10.94382139]
[1724225419238,0.18373058,59737.0,59736.0,11.04877156]
[1724225419487,0.13700729,59737.0,59736.0,11.04877156]
[1724225419696,2.1529,59739.0,59738.0,1.175782]
[1724225419998,2.1529,59739.0,59738.0,6.51530447]
[1724225420513,2.1529,59739.0,59738.0,8.01530447]
[1724225420746,2.1529,59739.0,59738.0,8.75736432]
[1724225421198,2.1529,59739.0,59738.0,8.77136432]
[1724225421599,2.1529,59739.0,59738.0,8.77136469]
[1724225421944,2.1529,59739.0,59738.0,8.78536469]
[1724225424319,1.817737,59739.0,59738.0,8.45020169]
[1724225424955,1.817737,59739.0,59738.0,8.46042687]
[1724225425128,1.818559,59739.0,59738.0,8.46042687]
[1724225425574,1.818559,59739.0,59738.0,8.46042713]
[1724225426619,1.818559,59739.0,59738.0,8.5013626]
[1724225427229,1.818559,59739.0,59738.0,8.50136246]
[1724225428470,1.818559,59739.0,59738.0,8.46042699]
[1724225429397,1.818559,59739.0,59738.0,8.79522199]
[1724225431088,1.81530036,59739.0,59738.0,8.79522199]
[1724225432282,1.77848002,59739.0,59738.0,7.14053999]
[1724225432476,1.77848002,59739.0,59738.0,8.18205841]
[1724225432477,1.72483083,59739.0,59738.0,8.18205841]
[1724225432688,1.70614983,59739.0,59738.0,8.75522199]
[1724225432900,1.68214983,59739.0,59738.0,8.99475746]
[1724225433110,0.86447598,59739.0,59738.0,9.73835246]
[1724225433320,2.27557513,59740.0,59739.0,1.88980306]
[1724225433523,1.05557513,59740.0,59739.0,6.64439504]
[1724225433727,1.05557513,59740.0,59739.0,7.02013051]
[1724225433937,1.05557513,59740.0,59739.0,8.52013051]
[1724225434899,0.8134167,59740.0,59739.0,8.87791951]
[1724225435084,0.77512193,59740.0,59739.0,8.89191951]
[1724225435705,0.77512193,59740.0,59739.0,8.90591951]
[1724225437238,0.77512193,59740.0,59739.0,8.9059148]
[1724225437454,0.70254834,59740.0,59739.0,8.9059148]
[1724225437883,0.70337034,59740.0,59739.0,8.9059148]
[1724225438087,0.70337034,59740.0,59739.0,10.65391634]
[1724225438298,0.89297034,59740.0,59739.0,8.07692627]
[1724225438728,2.2096962,59741.0,59740.0,1.95499206]
[1724225438934,1.76448548,59741.0,59740.0,7.94415642]
[1724225439135,1.66405148,59741.0,59740.0,8.64415642]
[1724225439337,1.63057348,59741.0,59740.0,10.14415642]
[1724225439749,0.31013948,59741.0,59740.0,10.14415642]
[1724225440120,0.20015444,59741.0,59740.0,10.14415642]
[1724225440326,0.20015444,59741.0,59740.0,10.34355642]
[1724225440758,0.13319844,59741.0,59740.0,10.35755642]
[1724225441537,0.00381344,59741.0,59740.0,10.37155642]
[1724225441736,1.12038752,59742.0,59741.0,2.782457]
[1724225441938,1.2388032,59743.0,59742.0,1.26973]
[1724225442141,1.2388032,59743.0,59742.0,4.6074458]
[1724225442323,1.2388032,59743.0,59742.0,6.4422178]
[1724225442591,1.1718492,59743.0,59742.0,7.18412442]
[1724225442810,1.0714182,59743.0,59742.0,7.18389311]
[1724225443017,1.0714182,59743.0,59742.0,7.88389311]
[1724225443627,0.9709872,59743.0,59742.0,7.88389311]
[1724225443830,0.9709872,59743.0,59742.0,7.90689311]
[1724225443831,0.9014732,59743.0,59742.0,7.90689311]
[1724225444667,1.156572,59744.0,59743.0,2.179985]
[1724225444871,0.006572,59744.0,59743.0,5.55942532]
[1724225445143,0.006572,59744.0,59743.0,5.6599059]
[1724225445322,0.006572,59744.0,59743.0,7.1599059]
[1724225445537,0.006572,59744.0,59743.0,8.45203415]
[1724225445739,1.4848,59745.0,59744.0,1.961485]
[1724225445916,1.4848,59745.0,59744.0,5.60824184]